fUSD/lending_fUSD_20250826
["ID","MTS","AMOUNT","RATE_DAILY","PERIOD"]
[381410594,1756187485513,-400.0,0.00016986,2]
[381410595,1756187485523,-455.33,0.00016986,2]
[381410596,1756187485532,-400.0,0.00016986,2]
[381410597,1756187485543,-400.0,0.00016986,2]
[381410598,1756187485553,-400.0,0.00016986,2]
[381410599,1756187485564,-637.5,0.00016986,2]
[381410600,1756187485575,-763.59,0.00016986,2]
[381410601,1756187485584,-400.0,0.00016986,2]
[381410602,1756187485594,-400.0,0.00016986,2]
[381410603,1756187485608,-400.0,0.00016986,2]
[381410604,1756187485619,-400.0,0.00016986,2]
[381410605,1756187485628,-881.6,0.00016986,2]
[381410606,1756187485639,-845.57,0.00016986,2]
[381410607,1756187485648,-1268.43,0.00016986,2]
[381410608,1756187485658,-400.0,0.00016986,2]
[381410609,1756187485667,-479.97,0.00016986,2]
[381410610,1756187485678,-400.0,0.00016986,2]
[381410611,1756187485687,-718.08,0.00016986,2]
[381410612,1756187485697,-670.09,0.00016986,2]
[381410613,1756187485706,-400.0,0.00016986,2]
[381410614,1756187485715,-583.2,0.00016986,2]
[381410615,1756187485724,-151.0,0.00016986,2]
[381410616,1756187485733,-400.0,0.00016986,2]
[381410617,1756187485742,-400.0,0.00016986,2]
[381410618,1756187485751,-400.0,0.00016986,2]
[381410619,1756187485761,-400.0,0.00016986,2]
[381410620,1756187485771,-400.0,0.00016986,2]
[381410621,1756187485781,-795.58,0.00016986,2]
[381410622,1756187485790,-400.0,0.00016986,2]
[381410623,1756187485801,-400.0,0.00016986,2]
[381410624,1756187485813,-400.0,0.00016986,2]
[381410625,1756187485823,-1266.92,0.00016986,2]
[381410626,1756187485834,-400.0,0.00016986,2]
[381410627,1756187485843,-810.52,0.00016986,2]
[381410628,1756187485853,-400.0,0.00016986,2]
[381410629,1756187485863,-400.0,0.00016986,2]
[381410630,1756187485873,-465.3,0.00016986,2]
[381410631,1756187485883,-776.68,0.00016986,2]
[381410632,1756187485893,-1119.7,0.00016986,2]
[381410633,1756187485904,-446.26,0.00016986,2]
[381410634,1756187485914,-540.95,0.00016986,2]
[381410635,1756187485925,-400.0,0.00016986,2]
[381410636,1756187485934,-703.26,0.00016986,2]
[381410637,1756187485944,-400.0,0.00016986,2]
[381410638,1756187485954,-400.0,0.00016986,2]
[381410639,1756187485964,-400.0,0.00016986,2]
[381410640,1756187485976,-614.98,0.00016986,2]
[381410641,1756187485986,-466.19,0.00016986,2]
[381410642,1756187485997,-679.1,0.00016986,2]
[381410643,1756187486007,-400.0,0.00016986,2]
[381410644,1756187486016,-589.87,0.00016986,2]
[381410645,1756187486026,-450.2,0.00016986,2]
[381410646,1756187486035,-1179.83,0.00016986,2]
[381410647,1756187486045,-400.0,0.00016986,2]
[381410648,1756187486055,-646.44,0.00016986,2]
[381410649,1756187486065,-1055.8,0.00016986,2]
[381410650,1756187486074,-1510.16,0.00016986,2]
[381410651,1756187486084,-1259.41,0.00016986,2]
[381410652,1756187486093,-400.0,0.00016986,2]
[381410653,1756187486103,-413.11,0.00016986,2]
[381410654,1756187486116,-483.6,0.00016986,2]
[381410655,1756187486126,-400.7182966,0.00016986,2]
[381410656,1756187486135,-554.07,0.00016986,2]
[381410657,1756187486145,-400.0,0.00016986,2]
[381410658,1756187486155,-559.26,0.00016986,2]
[381410659,1756187486165,-786.26,0.00016986,2]
[381410660,1756187486175,-400.0,0.00016986,2]
[381410661,1756187486184,-400.0,0.00016986,2]
[381410662,1756187486194,-400.0,0.00016986,2]
[381410663,1756187486204,-1298.59,0.00016986,2]
[381410664,1756187486213,-400.0,0.00016986,2]
[381410665,1756187486223,-535.4,0.00016986,2]
[381410666,1756187486233,-786.53,0.00016986,2]
[381410667,1756187486242,-1162.36,0.00016986,2]
[381410668,1756187486252,-400.0,0.00016986,2]
[381410669,1756187486261,-151.0,0.00016986,2]
[381410670,1756187486271,-1043.59,0.00016986,2]
[381410671,1756187486280,-1366.1,0.00016986,2]
[381410672,1756187486291,-400.0,0.00016986,2]
[381410673,1756187486300,-400.0,0.00016986,2]
[381410674,1756187486310,-766.6,0.00016986,2]
[381410675,1756187486320,-554.92,0.00016986,2]
[381410676,1756187486329,-400.0,0.00016986,2]
[381410677,1756187486338,-1003.43,0.00016986,2]
[381410678,1756187486347,-774.71,0.00016986,2]
[381410679,1756187486357,-1471.83,0.00016986,2]
[381410680,1756187486367,-536.12,0.00016986,2]
[381410681,1756187486377,-624.45,0.00016986,2]
[381410682,1756187486386,-400.72980134,0.00016986,2]
[381410683,1756187486395,-400.0,0.00016986,2]
[381410684,1756187486405,-400.0,0.00016986,2]
[381410685,1756187486414,-813.08,0.00016986,2]
[381410686,1756187486426,-400.0,0.00016986,2]
[381410687,1756187486435,-1102.6,0.00016986,2]
[381410688,1756187486445,-665.22,0.00016986,2]
[381410689,1756187486454,-1586.3,0.00016986,2]
[381410690,1756187486463,-400.0,0.00016986,2]
[381410691,1756187486473,-400.0,0.00016986,2]
[381410692,1756187486482,-689.33,0.00016986,2]
[381410693,1756187486491,-400.0,0.00016986,2]
[381410694,1756187486502,-1317.06,0.00016986,2]
[381410695,1756187486513,-400.0,0.00016986,2]
[381410696,1756187486522,-933.43,0.00016986,2]
[381410697,1756187486533,-608.95,0.00016986,2]
[381410698,1756187486542,-785.46,0.00016986,2]
[381410699,1756187486552,-400.0,0.00016986,2]
[381410700,1756187486562,-524.38,0.00016986,2]
[381410701,1756187486573,-400.0,0.00016986,2]
[381410702,1756187486582,-400.0,0.00016986,2]
[381410703,1756187486595,-518.0,0.00016986,2]
[381410704,1756187486610,-1094.15,0.00016986,2]
[381410705,1756187486620,-722.45,0.00016986,2]
[381410706,1756187486631,-819.64,0.00016986,2]
[381410707,1756187486640,-1168.8,0.00016986,2]
[381410708,1756187486651,-603.03,0.00016986,2]
[381410709,1756187486659,-931.86,0.00016986,2]
[381410710,1756187486670,-768.56,0.00016986,2]
[381410711,1756187486680,-1126.16,0.00016986,2]
[381410712,1756187486691,-634.62,0.00016986,2]
[381410713,1756187486701,-400.0,0.00016986,2]
[381410714,1756187486711,-1280.71,0.00016986,2]
[381410715,1756187486721,-400.0,0.00016986,2]
[381410716,1756187486731,-400.0,0.00016986,2]
[381410717,1756187486742,-400.0,0.00016986,2]
[381410718,1756187486753,-808.45,0.00016986,2]
[381410719,1756187486763,-400.0,0.00016986,2]
[381410720,1756187486774,-400.0,0.00016986,2]
[381410721,1756187486783,-400.0,0.00016986,2]
[381410722,1756187486795,-400.0,0.00016986,2]
[381410723,1756187486806,-400.0,0.00016986,2]
[381410724,1756187486815,-1216.87,0.00016986,2]
[381410725,1756187486825,-401.7,0.00016986,2]
[381410726,1756187486834,-1366.84,0.00016986,2]
[381410727,1756187486844,-788.6,0.00016986,2]
[381410728,1756187486853,-582.32,0.00016986,2]
[381410729,1756187486862,-1257.18,0.00016986,2]
[381410730,1756187486871,-919.63,0.00016986,2]
[381410731,1756187486880,-400.0,0.00016986,2]
[381410732,1756187486889,-400.0,0.00016986,2]
[381410733,1756187486898,-151.0,0.00016986,2]
[381410734,1756187486907,-824.9,0.00016986,2]
[381410735,1756187486915,-400.0,0.00016986,2]
[381410736,1756187486924,-151.0,0.00016986,2]
[381410737,1756187486933,-151.0,0.00016986,2]
[381410738,1756187486942,-400.0,0.00016986,2]
[381410739,1756187486951,-400.0,0.00016986,2]
[381410740,1756187486960,-400.0,0.00016986,2]
[381410741,1756187486968,-400.0,0.00016986,2]
[381410742,1756187486977,-400.0,0.00016986,2]
[381410743,1756187486987,-585.28,0.00016986,2]
[381410744,1756187486995,-706.01,0.00016986,2]
[381410745,1756187487005,-400.0,0.00016986,2]
[381410746,1756187487014,-638.53,0.00016986,2]
[381410747,1756187487025,-600.98,0.00016986,2]
[381410748,1756187487034,-151.0,0.00016986,2]
[381410749,1756187487044,-400.0,0.00016986,2]
[381410750,1756187487055,-151.0,0.00016986,2]
[381410751,1756187487066,-400.0,0.00016986,2]
[381410752,1756187487075,-151.0,0.00016986,2]
[381410753,1756187487084,-400.0,0.00016986,2]
[381410754,1756187487093,-627.83,0.00016986,2]
[381410755,1756187487103,-400.0,0.00016986,2]
[381410756,1756187487114,-1325.88,0.00016986,2]
[381410757,1756187487125,-400.0,0.00016986,2]
[381410758,1756187487134,-400.0,0.00016986,2]
[381410759,1756187487145,-400.0,0.00016986,2]
[381410760,1756187487154,-1001.68,0.00016986,2]
[381410761,1756187487163,-1244.26,0.00016986,2]
[381410762,1756187487173,-1095.98,0.00016986,2]
[381410763,1756187487182,-1482.58,0.00016986,2]
[381410764,1756187487192,-478.94,0.00016986,2]
[381410765,1756187487201,-400.0,0.00016986,2]
[381410766,1756187487211,-836.83,0.00016986,2]
[381410767,1756187487220,-400.0,0.00016986,2]
[381410768,1756187487231,-151.0,0.00016986,2]
[381410769,1756187487240,-400.0,0.00016986,2]
[381410770,1756187487250,-151.0,0.00016986,2]
[381410771,1756187487259,-719.43,0.00016986,2]
[381410772,1756187487270,-639.26,0.00016986,2]
[381410773,1756187487279,-400.0,0.00016986,2]
[381410774,1756187487289,-3054.08,0.00016986,2]
[381410775,1756187487298,-400.0,0.00016986,2]
[381410776,1756187487310,-1528.2,0.00016986,2]
[381410777,1756187487321,-489.66,0.00016986,2]
[381410778,1756187487332,-400.0,0.00016986,2]
[381410779,1756187487342,-400.0,0.00016986,2]
[381410780,1756187487352,-400.0,0.00016986,2]
[381410781,1756187487362,-400.0,0.00016986,2]
[381410782,1756187487372,-400.0,0.00016986,2]
[381410783,1756187487383,-400.0,0.00016986,2]
[381410784,1756187487394,-400.0,0.00016986,2]
[381410785,1756187487404,-1344.76,0.00016986,2]
[381410786,1756187487415,-256.05075673,0.00016986,2]
[381410787,1756187487425,-1179.01,0.00016986,2]
[381410788,1756187487434,-524.0,0.00016986,2]
[381410789,1756187487443,-400.0,0.00016986,2]
[381410790,1756187487452,-400.0,0.00016986,2]
[381410791,1756187487461,-400.0,0.00016986,2]
[381410792,1756187487470,-400.0,0.00016986,2]
[381410793,1756187487479,-400.0,0.00016986,2]
[381410794,1756187487489,-400.0,0.00016986,2]
[381410795,1756187487498,-1086.63,0.00016986,2]
[381410796,1756187487507,-400.0,0.00016986,2]
[381410797,1756187487516,-151.0,0.00016986,2]
[381410798,1756187487526,-400.0,0.00016986,2]
[381410799,1756187487535,-400.0,0.00016986,2]
[381410800,1756187487544,-1089.47,0.00016986,2]
[381410801,1756187487553,-400.0,0.00016986,2]
[381410802,1756187487563,-1722.07,0.00016986,2]
[381410803,1756187487571,-400.0,0.00016986,2]
[381410804,1756187487580,-400.0,0.00016986,2]
[381410805,1756187487590,-846.73,0.00016986,2]
[381410806,1756187487602,-973.83,0.00016986,2]
[381410807,1756187487611,-400.0,0.00016986,2]
[381410808,1756187487620,-790.96,0.00016986,2]
[381410809,1756187487630,-151.0,0.00016986,2]
[381410810,1756187487639,-400.92918167,0.00016986,2]
[381410811,1756187487648,-151.0,0.00016986,2]
[381410812,1756187487657,-400.0,0.00016986,2]
[381410813,1756187487666,-400.0,0.00016986,2]
[381410814,1756187487678,-400.0,0.00016986,2]
[381410815,1756187487687,-400.0,0.00016986,2]
[381410816,1756187487696,-992.95,0.00016986,2]
[381410817,1756187487705,-669.79,0.00016986,2]
[381410818,1756187487715,-151.0,0.00016986,2]
[381410819,1756187487725,-633.11,0.00016986,2]
[381410820,1756187487734,-840.73,0.00016986,2]
[381410821,1756187487744,-400.0,0.00016986,2]
[381410822,1756187487754,-400.0,0.00016986,2]
[381410823,1756187487764,-1382.39,0.00016986,2]
[381410824,1756187487774,-400.0,0.00016986,2]
[381410825,1756187487783,-13450.79,0.00016986,2]
[381410826,1756187487792,-400.0,0.00016986,2]
[381410827,1756187487801,-296.00110133,0.00016986,2]
[381410828,1756187487810,-171.590528,0.00016986,2]
[381410829,1756187487819,-400.0,0.00016986,2]
[381410830,1756187487828,-400.0,0.00016986,2]
[381410831,1756187487837,-400.0,0.00016986,2]
[381410832,1756187487847,-732.44,0.00016986,2]
[381410833,1756187487856,-400.0,0.00016986,2]
[381410834,1756187487865,-632.82,0.00016986,2]
[381410835,1756187487875,-400.43638665,0.00016986,2]
[381410836,1756187487884,-796.77,0.00016986,2]
[381410837,1756187487893,-1110.97,0.00016986,2]
[381410838,1756187487902,-400.0,0.00016986,2]
[381410839,1756187487911,-400.0,0.00016986,2]
[381410840,1756187487920,-400.0,0.00016986,2]
[381410841,1756187487931,-400.0,0.00016986,2]
[381410842,1756187487943,-400.0,0.00016986,2]
[381410843,1756187487951,-531.81,0.00016986,2]
[381410844,1756187487961,-400.0,0.00016986,2]
[381410845,1756187487971,-732.64,0.00016986,2]
[381410846,1756187487983,-400.0,0.00016986,2]
[381410847,1756187487994,-426.18,0.00016986,2]
[381410848,1756187488004,-1263.46,0.00016986,2]
[381410849,1756187488015,-400.0,0.00016986,2]
[381410850,1756187488025,-400.0,0.00016986,2]
[381410851,1756187488035,-567.184728,0.00016986,2]
[381410852,1756187488045,-520.03813205,0.00016986,2]
[381410853,1756187488055,-468.63,0.00016986,2]
[381410854,1756187488066,-567.184728,0.00016986,2]
[381410855,1756187488076,-400.0,0.00016986,2]
[381410856,1756187488086,-400.0,0.00016986,2]
[381410857,1756187488096,-567.184728,0.00016986,2]
[381410858,1756187488107,-400.0,0.00016986,2]
[381410859,1756187488121,-567.184728,0.00016986,2]
[381410860,1756187488135,-400.0,0.00016986,2]
[381410861,1756187488149,-595.78,0.00016986,2]
[381410862,1756187488161,-384.272693,0.00016986,2]
[381410863,1756187488174,-400.73,0.00016986,2]
[381410864,1756187488187,-400.0,0.00016986,2]
[381410865,1756187488200,-384.272693,0.00016986,2]
[381410866,1756187488213,-1145.6,0.00016986,2]
[381410867,1756187488227,-400.0,0.00016986,2]
[381410868,1756187488240,-384.272693,0.00016986,2]
[381410869,1756187488254,-384.272693,0.00016986,2]
[381410870,1756187488264,-400.0,0.00016986,2]
[381410871,1756187488277,-151.0,0.00016986,2]
[381410872,1756187488289,-151.0,0.00016986,2]
[381410873,1756187488304,-1266.19,0.00016986,2]
[381410874,1756187488318,-151.0,0.00016986,2]
[381410875,1756187488331,-737.0,0.00016986,2]
[381410876,1756187488347,-582.93,0.00016986,2]
[381410877,1756187488360,-400.0,0.00016986,2]
[381410878,1756187488372,-1205.89,0.00016986,2]
[381410879,1756187488388,-400.0,0.00016986,2]
[381410880,1756187488402,-151.0,0.00016986,2]
[381410881,1756187488416,-400.0,0.00016986,2]
[381410882,1756187488429,-1072.73,0.00016986,2]
[381410883,1756187488444,-1326.0,0.00016986,2]
[381410884,1756187488459,-445.40935917,0.00016986,2]
[381410885,1756187488474,-400.0,0.00016986,2]
[381410886,1756187488489,-1079.71,0.00016986,2]
[381410887,1756187488502,-1383.15,0.00016986,2]
[381410888,1756187488515,-152.855553,0.00016986,2]
[381410889,1756187488526,-151.0,0.00016986,2]
[381410890,1756187488536,-151.0,0.00016986,2]
[381410891,1756187488548,-400.0,0.00016986,2]
[381410892,1756187488565,-151.0,0.00016986,2]
[381410893,1756187488577,-151.0,0.00016986,2]
[381410894,1756187488588,-718.01,0.00016986,2]
[381410895,1756187488601,-151.0,0.00016986,2]
[381410896,1756187488612,-883.05,0.00016986,2]
[381410897,1756187488626,-151.0,0.00016986,2]
[381410898,1756187488642,-151.0,0.00016986,2]
[381410899,1756187488655,-400.0,0.00016986,2]
[381410900,1756187488666,-1026.97,0.00016986,2]
[381410901,1756187488681,-1226.51,0.00016986,2]
[381410902,1756187488693,-400.0,0.00016986,2]
[381410903,1756187488704,-669.92,0.00016986,2]
[381410904,1756187488716,-400.0,0.00016986,2]
[381410905,1756187488729,-400.0,0.00016986,2]
[381410906,1756187488741,-151.0,0.00016986,2]
[381410907,1756187488754,-151.0,0.00016986,2]
[381410908,1756187488767,-151.0,0.00016986,2]
[381410909,1756187488778,-151.0,0.00016986,2]
[381410910,1756187488792,-151.0,0.00016986,2]
[381410911,1756187488805,-400.0,0.00016986,2]
[381410912,1756187488817,-151.0,0.00016986,2]
[381410913,1756187488831,-1422.3,0.00016986,2]
[381410914,1756187488844,-151.0,0.00016986,2]
[381410915,1756187488857,-151.0,0.00016986,2]
[381410916,1756187488871,-151.0,0.00016986,2]
[381410917,1756187488883,-151.0,0.00016986,2]
[381410918,1756187488895,-400.0,0.00016986,2]
[381410919,1756187488908,-151.0,0.00016986,2]
[381410921,1756187488920,-400.0,0.00016986,2]
[381410922,1756187488932,-400.0,0.00016986,2]
[381410923,1756187488944,-165.446953,0.00016986,2]
[381410924,1756187488957,-400.0,0.00016986,2]
[381410925,1756187488968,-400.0,0.00016986,2]
[381410926,1756187488979,-400.0,0.00016986,2]
[381410927,1756187488991,-650.67,0.00016986,2]
[381410928,1756187489005,-151.0,0.00016986,2]
[381410929,1756187489017,-1098.0,0.00016986,2]
[381410930,1756187489029,-151.0,0.00016986,2]
[381410931,1756187489040,-400.0,0.00016986,2]
[381410933,1756187489052,-400.0,0.00016986,2]
[381410934,1756187489063,-410.97,0.00016986,2]
[381410935,1756187489075,-878.64,0.00016986,2]
[381410936,1756187489086,-151.0,0.00016986,2]
[381410937,1756187489098,-151.0,0.00016986,2]
[381410938,1756187489110,-400.0,0.00016986,2]
[381410939,1756187489122,-1318.33,0.00016986,2]
[381410940,1756187489133,-999.48,0.00016986,2]
[381410941,1756187489145,-714.24,0.00016986,2]
[381410943,1756187489156,-400.0,0.00016986,2]
[381410944,1756187489168,-151.0,0.00016986,2]
[381410945,1756187489180,-275.268487,0.00016986,2]
[381410946,1756187489192,-400.0,0.00016986,2]
[381410947,1756187489205,-793.027712,0.00016986,2]
[381410948,1756187489216,-793.027712,0.00016986,2]
[381410949,1756187489227,-671.42,0.00016986,2]
[381410950,1756187489239,-400.0,0.00016986,2]
[381410951,1756187489250,-400.0,0.00016986,2]
[381410952,1756187489261,-897.8,0.00016986,2]
[381410953,1756187489272,-793.027712,0.00016986,2]
[381410955,1756187489284,-793.027712,0.00016986,2]
[381410956,1756187489295,-457.65,0.00016986,2]
[381410957,1756187489307,-541.14,0.00016986,2]
[381410958,1756187489318,-400.0,0.00016986,2]
[381410959,1756187489328,-793.027712,0.00016986,2]
[381410960,1756187489339,-793.027712,0.00016986,2]
[381410961,1756187489350,-400.0,0.00016986,2]
[381410962,1756187489361,-400.0,0.00016986,2]
[381410963,1756187489372,-793.027712,0.00016986,2]
[381410964,1756187489383,-793.027708,0.00016986,2]
[381410966,1756187489394,-400.0,0.00016986,2]
[381410967,1756187489406,-400.0,0.00016986,2]
[381410968,1756187489417,-400.0,0.00016986,2]
[381410969,1756187489428,-400.0,0.00016986,2]
[381410970,1756187489440,-409.32,0.00016986,2]
[381410971,1756187489451,-400.0,0.00016986,2]
[381410972,1756187489461,-400.0,0.00016986,2]
[381410973,1756187489472,-466.9,0.00016986,2]
[381410974,1756187489484,-400.0,0.00016986,2]
[381410976,1756187489495,-799.13,0.00016986,2]
[381410977,1756187489507,-1200.34,0.00016986,2]
[381410978,1756187489518,-1005.27,0.00016986,2]
[381410979,1756187489530,-792.63,0.00016986,2]
[381410980,1756187489542,-429.83,0.00016986,2]
[381410981,1756187489553,-400.0,0.00016986,2]
[381410982,1756187489564,-497.26,0.00016986,2]
[381410983,1756187489575,-400.0,0.00016986,2]
[381410984,1756187489586,-626.24,0.00016986,2]
[381410985,1756187489598,-400.0,0.00016986,2]
[381410986,1756187489611,-620.32,0.00016986,2]
[381410987,1756187489623,-1548.36,0.00016986,2]
[381410988,1756187489634,-512.46,0.00016986,2]
[381410989,1756187489647,-1918.08,0.00016986,2]
[381410990,1756187489658,-656.04,0.00016986,2]
[381410991,1756187489670,-1594.74,0.00016986,2]
[381410992,1756187489682,-400.0,0.00016986,2]
[381410993,1756187489693,-400.0,0.00016986,2]
[381410994,1756187489704,-400.0,0.00016986,2]
[381410995,1756187489715,-400.0,0.00016986,2]
[381410996,1756187489726,-400.0,0.00016986,2]
[381410997,1756187489737,-400.0,0.00016986,2]
[381410998,1756187489748,-1015.41,0.00016986,2]
[381410999,1756187489759,-520.36767774,0.00016986,2]
[381411000,1756187489770,-400.0,0.00016986,2]
[381411001,1756187489781,-400.0,0.00016986,2]
[381411002,1756187489792,-400.0,0.00016986,2]
[381411003,1756187489804,-400.0,0.00016986,2]
[381411004,1756187489815,-400.0,0.00016986,2]
[381411005,1756187489828,-400.0,0.00016986,2]
[381411006,1756187489839,-151.0,0.00016986,2]
[381411007,1756187489850,-151.0,0.00016986,2]
[381411008,1756187489862,-400.0,0.00016986,2]
[381411009,1756187489873,-151.0,0.00016986,2]
[381411010,1756187489884,-151.0,0.00016986,2]
[381411011,1756187489896,-151.0,0.00016986,2]
[381411012,1756187489908,-510.12,0.00016986,2]
[381411013,1756187489919,-151.0,0.00016986,2]
[381411014,1756187489931,-229.435156,0.00016986,2]
[381411015,1756187489943,-400.0,0.00016986,2]
[381411016,1756187489954,-151.0,0.00016986,2]
[381411017,1756187489966,-151.0,0.00016986,2]
[381411018,1756187489977,-151.0,0.00016986,2]
[381411019,1756187489989,-400.0,0.00016986,2]
[381411020,1756187490000,-151.0,0.00016986,2]
[381411021,1756187490012,-400.0,0.00016986,2]
[381411022,1756187490024,-400.0,0.00016986,2]
[381411023,1756187490035,-151.0,0.00016986,2]
[381411024,1756187490046,-400.0,0.00016986,2]
[381411025,1756187490058,-264.06199,0.00016986,2]
[381411026,1756187490070,-1209.23,0.00016986,2]
[381411027,1756187490081,-400.0,0.00016986,2]
[381411028,1756187490093,-400.0,0.00016986,2]
[381411029,1756187490104,-400.0,0.00016986,2]
[381411030,1756187490116,-740.16,0.00016986,2]
[381411031,1756187490128,-400.0,0.00016986,2]
[381411032,1756187490139,-542.99,0.00016986,2]
[381411033,1756187490150,-685.17,0.00016986,2]
[381411034,1756187490162,-402.4764871,0.00016986,2]
[381411035,1756187490173,-1089.97,0.00016986,2]
[381411036,1756187490184,-1670.18,0.00016986,2]
[381411037,1756187490196,-400.0,0.00016986,2]
[381411038,1756187490207,-718.47,0.00016986,2]
[381411039,1756187490219,-400.0,0.00016986,2]
[381411040,1756187490230,-151.0,0.00016986,2]
[381411041,1756187490242,-244.248112,0.00016986,2]
[381411042,1756187490252,-272.80493403,0.00016986,2]
[381411043,1756187490264,-400.0,0.00016986,2]
[381411044,1756187490276,-193.89371508,0.00016986,2]
[381411045,1756187490287,-400.0,0.00016986,2]
[381411046,1756187490299,-400.0,0.00016986,2]
[381411047,1756187490310,-400.0,0.00016986,2]
[381411048,1756187490322,-400.0,0.00016986,2]
[381411049,1756187490334,-400.0,0.00016986,2]
[381411050,1756187490346,-400.0,0.00016986,2]
[381411051,1756187490358,-400.0,0.00016986,2]
[381411052,1756187490369,-400.0,0.00016986,2]
[381411053,1756187490381,-400.0,0.00016986,2]
[381411054,1756187490392,-400.0,0.00016986,2]
[381411055,1756187490404,-400.0,0.00016986,2]
[381411056,1756187490415,-400.0,0.00016986,2]
[381411057,1756187490427,-476.68,0.00016986,2]
[381411058,1756187490438,-488.64,0.00016986,2]
[381411059,1756187490451,-400.0,0.00016986,2]
[381411060,1756187490463,-400.0,0.00016986,2]
[381411061,1756187490474,-400.0,0.00016986,2]
[381411062,1756187490486,-400.0,0.00016986,2]
[381411063,1756187490500,-1661.52,0.00016986,2]
[381411064,1756187490513,-405.3215669,0.00016986,2]
[381411065,1756187490536,-400.0,0.00016986,2]
[381411066,1756187490548,-400.0,0.00016986,2]
[381411067,1756187490561,-538.73,0.00016986,2]
[381411068,1756187490574,-400.0,0.00016986,2]
[381411069,1756187490585,-400.0,0.00016986,2]
[381411070,1756187490598,-400.0,0.00016986,2]
[381411071,1756187490612,-400.0,0.00016986,2]
[381411072,1756187490625,-400.0,0.00016986,2]
[381411073,1756187490638,-201.909134,0.00016986,2]
[381411074,1756187490649,-201.909134,0.00016986,2]
[381411075,1756187490660,-400.0,0.00016986,2]
[381411076,1756187490671,-400.0,0.00016986,2]
[381411077,1756187490681,-400.0,0.00016986,2]
[381411078,1756187490693,-201.909134,0.00016986,2]
[381411079,1756187490705,-400.0,0.00016986,2]
[381411080,1756187490716,-201.909134,0.00016986,2]
[381411081,1756187490728,-400.0,0.00016986,2]
[381411082,1756187490740,-1068.77,0.00016986,2]
[381411083,1756187490751,-201.909134,0.00016986,2]
[381411084,1756187490762,-201.909134,0.00016986,2]
[381411085,1756187490774,-400.0,0.00016986,2]
[381411086,1756187490786,-151.0,0.00016986,2]
[381411087,1756187491790,-201.909134,0.00016986,2]
[381411088,1756187491839,-400.0,0.00016986,2]
[381411089,1756187491862,-151.0,0.00016986,2]
[381411090,1756187491873,-201.909143,0.00016986,2]
[381411091,1756187491883,-400.0,0.00016986,2]
[381411092,1756187491892,-400.0,0.00016986,2]
[381411093,1756187491902,-400.0,0.00016986,2]
[381411094,1756187491912,-400.0,0.00016986,2]
[381411095,1756187491921,-400.0,0.00016986,2]
[381411096,1756187491931,-400.0,0.00016986,2]
[381411097,1756187491940,-151.0,0.00016986,2]
[381411098,1756187491951,-400.0,0.00016986,2]
[381411099,1756187491963,-151.0,0.00016986,2]